bitfinex/quotes_ETHUSD_20250430
["timestamp","ask_amount","ask_price","bid_price","bid_amount"]
[1746037469489,0.55947342,1787.3,1787.1,6.65784455]
[1746037469794,5.59471547,1787.5,1787.2,0.10458838]
[1746037469989,5.59423692,1787.6,1787.2,5.59532443]
[1746037470192,5.59452452,1787.5,1787.3,0.12548735]
[1746037470415,5.59452452,1787.5,1787.1,12.2532858]
[1746037470726,5.59476858,1787.4,1787.1,1.0623]
[1746037471222,5.59508824,1787.3,1787.1,1.0623]
[1746037471406,1.11892931,1787.4,1787.1,1.0623]
[1746037471611,5.59455201,1787.5,1787.1,6.65777797]
[1746037471987,5.5947301,1787.4,1787.1,1.0623]
[1746037472219,5.59452221,1787.5,1787.1,6.6579022]
[1746037472425,5.59489518,1787.4,1787.1,1.0623]
[1746037472791,11.18986477,1787.4,1787.1,1.0623]
[1746037473113,5.59504699,1787.3,1786.9,10.75617571]
[1746037473430,5.59504699,1787.3,1786.9,17.35494662]
[1746037474123,5.59504699,1787.3,1786.9,17.35484961]
[1746037474330,5.59504699,1787.3,1786.9,17.35488178]
[1746037474560,6.60475793,1787.4,1786.9,17.35488178]
[1746037474701,5.59503161,1787.3,1786.7,1.0027]
[1746037474893,5.59610471,1787.0,1786.7,1.0027]
[1746037475092,5.59610471,1787.0,1786.6,5.59706836]
[1746037475093,5.59629327,1786.9,1786.5,6.1617]
[1746037475293,0.01488235,1786.9,1786.3,9.87030726]
[1746037475499,5.5970251,1786.7,1786.3,9.87030726]
[1746037475824,5.59729215,1786.6,1786.3,9.87030726]
[1746037476024,7.15532761,1786.7,1786.3,15.46832819]
[1746037476321,7.15532761,1786.7,1786.3,21.06627171]
[1746037476625,5.59605394,1787.0,1786.6,5.59703026]
[1746037476939,5.59605394,1787.0,1786.6,5.59701923]
[1746037477440,5.59684648,1786.8,1786.4,5.59774277]
[1746037477590,5.59673241,1786.8,1786.5,5.59748774]
[1746037477792,1.0243,1787.1,1786.3,10.75686618]
[1746037478102,4.50563995,1787.2,1786.9,5.59625949]
[1746037478311,1.0243,1787.4,1786.8,1.0205]
[1746037478499,5.59624518,1787.0,1786.6,5.59712801]
[1746037478990,5.59597662,1787.0,1786.6,5.59701461]
[1746037479191,5.59571954,1787.1,1786.8,5.596597]
[1746037479391,5.59549643,1787.2,1786.8,5.596597]
[1746037479632,5.59521786,1787.3,1786.9,5.59614942]
[1746037479833,5.59521786,1787.3,1786.8,7.1926567]
[1746037479834,5.59569281,1787.1,1786.8,6.632997]
[1746037480135,5.59545869,1787.2,1786.8,1.0364]
[1746037480440,5.5958168,1787.1,1786.7,5.159]
[1746037480592,5.59588199,1787.1,1786.7,10.75581604]
[1746037480792,5.59588199,1787.1,1786.7,12.49463446]
[1746037480992,8.59517234,1787.3,1786.9,5.59612884]
[1746037481244,3.0,1787.3,1787.1,5.5956222]
[1746037481529,5.59473205,1787.4,1787.0,5.59585305]
[1746037481743,5.59473205,1787.4,1787.0,11.19159979]
[1746037482192,8.59456802,1787.5,1787.1,5.5956533]
[1746037482395,9.55451482,1787.5,1787.1,5.5956533]
[1746037482627,5.59496752,1787.4,1787.0,5.59574674]
[1746037483449,5.59496752,1787.4,1786.9,6.65154605]
[1746037483450,5.59519532,1787.3,1786.9,12.24759911]
[1746037483730,5.59521107,1787.3,1786.9,6.65157127]
[1746037483898,3.0,1787.4,1786.9,6.65157127]
[1746037483899,8.59499736,1787.4,1787.0,5.59583398]
[1746037484098,5.59514537,1787.3,1787.0,5.59583398]
[1746037484309,9.55049178,1787.4,1786.9,6.6514947]
[1746037484310,5.59499736,1787.4,1786.9,6.6514947]
[1746037484511,5.59455666,1787.5,1787.0,5.5959709]
[1746037484729,5.59455666,1787.5,1787.1,5.59552093]
[1746037484939,5.59486922,1787.4,1787.0,5.59577044]
[1746037485119,5.59486922,1787.4,1787.0,6.26088748]
[1746037485511,5.59486922,1787.4,1787.0,11.85664024]
[1746037485711,5.59486922,1787.4,1787.1,5.59554242]
[1746037485914,5.59507746,1787.3,1786.9,6.65150795]
[1746037486216,5.59507746,1787.3,1786.9,12.24761417]
[1746037486399,5.59507746,1787.3,1787.0,5.5959302]
[1746037486804,5.59507746,1787.3,1786.9,7.87626764]
[1746037486805,5.59537257,1787.2,1786.9,6.65150622]
[1746037487933,5.59537257,1787.2,1786.8,5.59652932]
[1746037487934,5.59577266,1787.1,1786.7,13.5300238]
[1746037488242,1.0555,1787.3,1786.7,7.93312802]
[1746037488243,5.59613852,1787.0,1786.7,7.93312802]
[1746037488429,5.59613852,1787.0,1786.7,11.7909747]
[1746037488743,5.59613852,1787.0,1786.7,11.79101344]
[1746037489245,1.0555,1786.9,1786.7,5.159]
[1746037489578,6.65200489,1786.9,1786.7,5.159]
[1746037489912,6.65200489,1786.9,1786.4,6.1932]
[1746037490238,6.65200489,1786.9,1786.6,5.59715344]
[1746037490538,12.22622093,1787.1,1786.7,5.5967628]
[1746037490740,5.59597133,1787.0,1786.7,5.5967628]
[1746037491238,11.19217467,1787.0,1786.6,5.59699826]
[1746037491540,5.59597133,1787.0,1786.6,11.19404728]
[1746037491735,12.2262427,1787.1,1786.7,5.59679145]
[1746037491910,5.59604711,1787.0,1786.6,5.59699826]
[1746037492110,11.19225609,1787.0,1786.6,5.59699826]
[1746037492340,5.59629793,1786.9,1786.6,5.59699826]
[1746037493669,5.59604711,1787.0,1786.6,5.59699826]
[1746037494366,5.59633055,1786.9,1786.6,5.59699826]
[1746037494667,5.59604711,1787.0,1786.6,5.59699826]
[1746037495173,6.94094376,1787.0,1786.6,5.59699826]
[1746037495462,5.59604711,1787.0,1786.6,5.59699826]
[1746037495665,1.0345,1787.1,1786.7,5.59670561]
[1746037495865,5.5954948,1787.2,1786.8,5.59628747]
[1746037496056,8.59534701,1787.2,1786.9,5.59613372]
[1746037496263,6.66807221,1787.3,1786.9,5.59613372]
[1746037496447,12.26339378,1787.3,1786.9,6.71538743]
[1746037496641,5.59553322,1787.2,1786.8,5.59640342]
[1746037496848,6.66808272,1787.3,1786.8,5.59640333]
[1746037497084,6.66808272,1787.3,1786.9,5.59616962]
[1746037497240,5.59536814,1787.2,1786.9,5.59616962]
[1746037497842,8.59484225,1787.4,1787.1,5.59565405]
[1746037498041,5.59449664,1787.5,1787.1,5.59565405]
[1746037498042,13.01336519,1787.5,1787.1,5.59565405]
[1746037498237,13.01339263,1787.5,1787.1,5.59565405]
[1746037498638,13.01337525,1787.5,1787.1,5.59565405]
[1746037498865,7.41870451,1787.5,1787.1,5.59565405]
[1746037499377,5.59549852,1787.2,1787.0,1.0825]
[1746037499598,5.59549852,1787.2,1786.8,11.82088088]
[1746037499780,5.59511539,1787.3,1786.9,5.59614399]
[1746037499781,5.5952519,1787.3,1786.9,5.59614399]
[1746037499942,5.59543753,1787.2,1786.8,17.4172869]
[1746037500138,5.59543753,1787.2,1786.8,13.56260912]
[1746037500340,1.74897045,1787.4,1786.8,6.2245]
[1746037500580,5.59516655,1787.3,1786.9,5.59605863]
[1746037500777,5.59534898,1787.2,1786.8,11.82094263]
[1746037500992,5.59534898,1787.2,1786.8,11.8208803]
[1746037501161,5.59534898,1787.2,1786.8,11.82086672]
[1746037501366,1.1190498,1787.2,1786.8,5.142]
[1746037501583,6.59590161,1787.0,1786.8,5.142]
[1746037502059,6.59590161,1787.0,1786.6,11.19404317]
[1746037502598,6.59590161,1787.0,1786.6,5.59700509]
[1746037502962,6.59572348,1787.0,1786.6,5.59700509]
[1746037503282,11.19170789,1787.1,1786.7,5.59664282]
[1746037503467,12.4484686,1787.1,1786.7,5.59664282]
[1746037503675,6.85257147,1787.1,1786.7,5.59664282]
[1746037503869,2.0,1787.0,1786.7,5.59664282]
[1746037504631,2.0,1787.0,1786.9,5.59628406]
[1746037504954,2.0,1787.0,1786.9,6.60968406]
[1746037505158,2.0,1787.0,1786.9,7.83029817]
[1746037506418,2.0,1787.0,1786.9,8.38029817]
[1746037506772,2.0,1787.0,1786.9,13.52229817]
[1746037508506,2.0,1787.0,1786.9,16.52229817]
[1746037508712,8.59153999,1787.8,1787.4,5.59463373]
[1746037509008,0.859154,1787.7,1787.4,11.18917611]
[1746037509215,8.59153999,1787.8,1787.5,5.59437029]
[1746037509514,2.0,1787.8,1787.6,5.59388648]
[1746037509811,2.0,1787.8,1787.7,5.59377971]
[1746037511179,2.0,1787.8,1787.7,5.64970843]
[1746037511379,2.0,1787.8,1787.7,5.59377971]
[1746037511580,2.0,1787.8,1787.7,6.81737633]
[1746037512078,3.0795,1788.2,1787.8,5.59338623]
[1746037512307,5.59252902,1788.1,1787.8,5.59338623]
[1746037512625,6.67675111,1787.7,1787.3,10.73686075]
[1746037512794,5.59423388,1787.6,1787.3,5.142]
[1746037513115,5.59534467,1787.2,1787.1,8.0]
[1746037513328,5.59565014,1787.2,1786.8,5.59646808]
[1746037513614,5.59587017,1787.1,1786.7,8.84960726]
[1746037513916,5.59615586,1787.0,1786.7,8.84960726]
[1746037514076,5.59632876,1786.9,1786.7,8.84960726]
[1746037514274,11.1917785,1787.1,1786.7,14.44649271]
[1746037514480,11.19177676,1787.1,1786.7,10.73788545]
[1746037514719,5.59583301,1787.1,1786.7,10.73771385]
[1746037514875,5.59546982,1787.2,1786.8,5.59640607]
[1746037515079,9.66724404,1787.3,1786.8,5.59640607]
[1746037515406,12.21231664,1787.8,1787.1,5.59554432]
[1746037515407,1.0278,1787.5,1787.1,5.59554432]
[1746037515718,5.59473014,1787.4,1787.0,5.59577906]
[1746037516020,11.18976152,1787.4,1787.0,5.59577906]
[1746037516206,5.59549303,1787.2,1786.8,6.67024778]
[1746037516525,5.59515802,1787.3,1786.9,5.59617346]
[1746037517312,6.62228926,1787.5,1787.1,5.59564782]
[1746037517914,5.59529831,1787.3,1786.9,5.5962672]
[1746037518094,5.595517,1787.2,1786.8,6.67031688]
[1746037518295,5.595517,1787.2,1786.8,8.51848267]
[1746037518620,5.59561208,1787.2,1786.8,8.51848267]
[1746037518980,5.59561208,1787.2,1786.8,2.92208867]
[1746037519180,5.59561208,1787.2,1786.8,6.67019485]
[1746037519483,5.59569368,1787.1,1786.8,6.67048382]
[1746037519716,5.59561208,1787.2,1786.8,12.2668729]
[1746037520026,5.59561208,1787.2,1786.8,6.67028908]
[1746037520516,5.59561208,1787.2,1786.8,6.67026272]
[1746037520815,5.59561208,1787.2,1786.8,12.26667033]
[1746037521006,5.59561208,1787.2,1786.8,6.67026272]
[1746037521384,5.59559413,1787.2,1786.8,6.67026272]
[1746037522119,5.59559413,1787.2,1786.8,1.0739]
[1746037522285,6.65758892,1787.1,1786.7,10.73785435]
[1746037522485,6.65758892,1787.1,1786.7,10.73773062]
[1746037522686,6.65768779,1787.1,1786.7,10.73779586]
[1746037522988,6.65768779,1787.1,1786.8,5.59659661]
[1746037523192,1.0618,1787.1,1786.8,11.19297721]
[1746037523396,6.65759395,1787.1,1786.7,12.47042828]
[1746037523596,5.59609276,1787.0,1786.7,6.87373295]
[1746037523922,1.0618,1787.1,1786.7,6.87373295]
[1746037523923,5.59646371,1786.9,1786.7,5.141]
[1746037524231,5.59659726,1786.8,1786.4,12.2868]
[1746037524431,5.59771606,1786.5,1786.3,5.127]
[1746037524731,5.59709879,1786.7,1786.3,10.72492888]
[1746037525032,5.59723429,1786.6,1786.3,5.127]
[1746037525216,5.59709879,1786.7,1786.3,10.72514585]
[1746037525530,5.59674251,1786.8,1786.4,11.19522273]
[1746037525731,5.59674251,1786.8,1786.4,5.59758913]
[1746037525732,5.59705474,1786.7,1786.4,5.59758913]
[1746037525902,5.59659726,1786.8,1786.4,5.59758913]
[1746037526102,5.59659726,1786.8,1786.4,7.22986372]
[1746037526409,5.59738701,1786.6,1786.3,5.127]
[1746037526606,5.59680431,1786.8,1786.3,5.127]
[1746037526928,8.59640384,1786.9,1786.6,1.0161]
[1746037527121,14.19297635,1786.9,1786.6,1.0161]
[1746037527438,5.59669818,1786.8,1786.6,1.0161]
[1746037527730,5.5969941,1786.7,1786.4,1.0161]
[1746037527911,5.59725954,1786.6,1786.3,10.72514439]
[1746037528712,5.59694162,1786.7,1786.3,10.72495595]
[1746037528923,5.59694162,1786.7,1786.3,10.72494668]
[1746037529125,5.59694162,1786.7,1786.3,16.37886886]
[1746037529306,5.59694162,1786.7,1786.3,16.32290839]
[1746037529505,5.59694162,1786.7,1786.3,16.32291664]
[1746037529706,5.59694162,1786.7,1786.3,10.72494668]
[1746037529925,11.19413776,1786.7,1786.3,10.72494668]
[1746037530132,5.59694162,1786.7,1786.4,5.59772138]
[1746037530303,12.24406933,1786.8,1786.4,5.59772138]
[1746037530515,6.6471784,1786.8,1786.4,7.22994574]
[1746037530826,5.59678409,1786.8,1786.5,1.0603]
[1746037531244,5.59678409,1786.8,1786.5,6.65781844]
[1746037531446,11.19361783,1786.8,1786.5,1.0603]
[1746037531754,5.59678409,1786.8,1786.5,1.0603]
[1746037533265,5.127,1787.2,1786.7,5.59668744]
[1746037533266,6.59927155,1787.2,1786.7,5.59668744]
[1746037533560,11.19168106,1787.1,1786.7,5.59668744]
[1746037534062,5.59604065,1787.0,1786.7,5.59668744]
[1746037534472,5.59574875,1787.1,1786.8,5.59658651]
[1746037534618,11.19171091,1787.1,1786.7,5.59668744]
[1746037534823,5.59574252,1787.1,1786.7,5.59680917]
[1746037535024,5.59574252,1787.1,1786.7,5.59670194]
[1746037535224,11.19163559,1787.1,1786.7,5.59670194]
[1746037535663,5.59628309,1787.0,1786.6,5.59708503]
[1746037535820,5.59628309,1787.0,1786.6,5.59703945]
[1746037536024,5.59628309,1787.0,1786.7,5.5967908]
[1746037536334,5.59628309,1787.0,1786.7,5.59681675]
[1746037536530,5.59628309,1787.0,1786.7,5.59686709]
[1746037536756,11.19234738,1787.0,1786.6,5.5971876]
[1746037536962,5.5961209,1787.0,1786.6,5.5971876]
[1746037537330,5.5961209,1787.0,1786.6,5.59709855]
[1746037537525,5.5961209,1787.0,1786.6,5.59702953]
[1746037537725,5.5961209,1787.0,1786.6,11.19402749]
[1746037537954,5.59583311,1787.1,1786.7,5.59671184]
[1746037538160,5.59583311,1787.1,1786.7,5.5967038]
[1746037538360,5.59600655,1787.0,1786.7,5.5967038]
[1746037538558,5.59583311,1787.1,1786.7,5.5967038]
[1746037538859,5.59606994,1787.0,1786.7,5.5967038]
[1746037539069,5.59583311,1787.1,1786.7,11.19340995]
[1746037539375,5.59583311,1787.1,1786.7,5.5967038]
[1746037539675,5.59611502,1787.0,1786.7,5.5967038]
[1746037539850,5.59583311,1787.1,1786.8,5.5965528]
[1746037540161,5.59583311,1787.1,1786.7,11.19343128]
[1746037540350,6.81535044,1787.1,1786.7,5.5967038]
[1746037540654,6.81535044,1787.1,1786.7,5.59669853]
[1746037540856,5.59583311,1787.1,1786.7,5.59669853]
[1746037541163,5.59601877,1787.0,1786.7,5.59669853]
[1746037541372,4.50563995,1787.5,1786.8,5.128]
[1746037541657,6.67121851,1787.6,1787.2,5.59510731]
[1746037541955,7.40091434,1787.6,1787.0,1.062]
[1746037542155,5.59449898,1787.5,1787.1,5.128]
[1746037542361,5.59449898,1787.5,1787.0,6.65778303]
[1746037542520,6.89403838,1787.5,1787.0,6.65778303]
[1746037542723,5.59500752,1787.4,1787.1,5.128]
[1746037542924,6.89411361,1787.5,1787.1,5.128]
[1746037543121,12.48875869,1787.5,1787.1,10.72362261]
[1746037543324,6.84368908,1787.4,1787.1,5.128]
[1746037543535,1.24887587,1787.4,1787.1,10.72353739]
[1746037543869,7.40094054,1787.6,1787.2,5.59520845]
[1746037544172,7.40078379,1787.6,1787.3,5.59501272]
[1746037544973,7.40078379,1787.6,1787.2,6.61130845]
[1746037545331,7.40078379,1787.6,1787.3,5.59491391]
[1746037545676,7.40078379,1787.6,1787.3,5.127]
[1746037546282,7.40078379,1787.6,1787.3,10.72201424]
[1746037546737,7.40078379,1787.6,1787.3,5.127]
[1746037546940,6.33472173,1787.5,1787.3,5.127]
[1746037547468,0.74007838,1787.5,1787.3,5.127]
[1746037547637,7.40095999,1787.6,1787.3,5.127]
[1746037547845,1.0352,1787.8,1787.5,5.59420705]
[1746037548080,4.0352,1787.8,1787.5,5.59420705]
[1746037548277,4.0352,1787.8,1787.5,11.18841725]
[1746037548479,1.0352,1788.0,1787.3,6.1861]
[1746037548679,6.62807033,1788.0,1787.7,5.59353428]
[1746037548881,7.85014714,1788.0,1787.7,10.72053428]
[1746037549187,7.85014714,1788.0,1787.7,10.72068013]
[1746037549348,8.62759244,1788.2,1787.7,11.77972286]
[1746037549548,5.59252991,1788.1,1787.8,5.59335594]
[1746037549769,3.0352,1788.2,1787.7,6.1861]
[1746037549969,2.0,1788.2,1788.1,5.59252838]
[1746037550290,2.0,1788.2,1788.1,11.77862838]
[1746037550646,2.0,1788.2,1788.1,13.4109014]
[1746037551844,10.09555022,1789.0,1788.1,13.4109014]
[1746037551845,5.54083995,1789.0,1788.7,5.59049002]
[1746037552051,6.62441987,1789.2,1788.7,10.7165435]
[1746037552301,6.62441987,1789.2,1788.7,10.7163846]
[1746037552446,5.58943325,1789.1,1788.7,10.7163846]
[1746037552864,5.58943325,1789.1,1788.7,5.126]
[1746037553074,5.58973723,1789.0,1788.6,6.64992469]
[1746037553483,5.58973723,1789.0,1788.7,5.126]
[1746037554188,5.58973723,1789.0,1788.6,6.64992469]
[1746037554393,5.58973723,1789.0,1788.8,5.126]
[1746037555273,11.17969627,1789.0,1788.8,5.126]
[1746037555466,5.59002739,1788.9,1788.8,5.126]
[1746037556001,5.58988332,1789.0,1788.8,5.126]
[1746037557384,6.81090779,1789.1,1788.8,5.126]
[1746037557687,5.58981449,1789.0,1788.8,5.126]
[1746037558891,5.58957631,1789.1,1788.8,5.126]
[1746037559100,5.59002739,1788.9,1788.8,5.126]
[1746037559617,5.59002739,1788.9,1788.6,1.0591]
[1746037559776,5.59002739,1788.9,1788.8,5.11]
[1746037559963,5.58990034,1789.0,1788.8,5.11]
[1746037560999,5.59002739,1788.9,1788.8,5.11]
[1746037562021,9.74981773,1788.9,1788.2,1.0084]
[1746037562301,5.59118368,1788.6,1788.3,5.109]
[1746037562501,5.59079887,1788.7,1788.3,10.70084358]
[1746037562679,5.59110604,1788.6,1788.3,5.109]
[1746037562880,5.5915641,1788.5,1788.3,5.109]
[1746037563465,5.59114472,1788.6,1788.3,10.70090275]
[1746037563665,5.59114472,1788.6,1788.3,11.52992578]
[1746037563908,5.59114472,1788.6,1788.3,5.93802303]
[1746037564506,5.59076779,1788.7,1788.3,5.93802303]
[1746037564727,5.59076779,1788.7,1788.3,12.53817667]
[1746037565096,6.59591599,1788.8,1788.4,5.5914417]
[1746037565403,5.59073059,1788.7,1788.4,1.81295728]
[1746037565605,11.18114428,1788.8,1788.4,7.40451694]
[1746037565814,5.59057199,1788.8,1788.4,1.81295728]
[1746037565994,5.59128101,1788.5,1788.3,6.1174]
[1746037566305,5.59140613,1788.5,1788.3,5.109]
[1746037568104,5.59159024,1788.4,1788.3,5.109]
[1746037568309,5.59173945,1788.4,1788.1,5.109]
[1746037568516,11.18360349,1788.4,1788.1,5.109]
[1746037568721,5.59221563,1788.2,1787.9,1.0365]
[1746037569021,5.59278085,1788.1,1787.7,25.13017479]
[1746037569186,11.18491105,1788.2,1787.7,25.13012003]
[1746037569388,5.59239276,1788.2,1787.8,5.59332596]
[1746037569797,5.59239276,1788.2,1787.8,5.59329704]
[1746037569998,6.59795374,1788.3,1788.0,5.59280516]
[1746037570201,5.59281839,1788.1,1787.7,25.13026513]
[1746037570506,5.59325449,1787.9,1787.6,5.109]
[1746037570687,5.59377971,1787.7,1787.6,5.109]
[1746037571081,5.5936846,1787.8,1787.6,5.109]
[1746037571324,6.58483081,1788.0,1787.6,5.109]
[1746037571484,5.59335155,1787.9,1787.6,5.109]
[1746037571686,5.59326913,1787.9,1787.6,5.109]
[1746037571997,5.59316633,1787.9,1787.6,5.109]
[1746037572247,6.58490018,1788.0,1787.6,10.70309098]
[1746037572392,5.59333103,1787.9,1787.6,5.109]
[1746037572798,6.81115415,1787.9,1787.6,5.109]
[1746037573116,6.81116462,1787.9,1787.6,5.109]
[1746037573323,0.9918,1788.0,1787.2,1.0306]
[1746037573488,5.59326749,1787.9,1787.5,5.59425746]
[1746037573689,5.59326749,1787.9,1787.5,6.62485746]
[1746037573884,11.1867097,1787.9,1787.5,6.62480839]
[1746037574103,5.59347138,1787.8,1787.5,8.35764323]
[1746037574307,5.59297593,1788.0,1787.6,5.59385197]
[1746037574639,6.62416074,1788.4,1788.0,5.59260777]
[1746037574784,5.59136381,1788.5,1788.1,5.59226503]
[1746037574984,11.18290545,1788.5,1788.1,6.25455153]
[1746037575221,5.59136381,1788.5,1788.1,6.25455153]
[1746037575399,6.62355592,1788.6,1788.1,0.6622865]
[1746037575598,5.59140366,1788.5,1788.1,5.5923447]
[1746037576012,5.59140366,1788.5,1788.0,6.62322849]
[1746037576214,5.59177793,1788.4,1788.0,6.62322849]
[1746037576389,5.59140366,1788.5,1788.1,5.59235364]
[1746037576590,5.59219279,1788.3,1788.0,1.0306]
[1746037576985,1.04728235,1788.6,1788.0,6.62332545]
[1746037576986,5.59181326,1788.4,1788.0,6.62332545]
[1746037577192,5.59181326,1788.4,1788.0,2.7631293]
[1746037577193,5.59200915,1788.3,1788.0,2.7631293]
[1746037578324,5.59181326,1788.4,1788.0,8.3559686]
[1746037578818,5.59181326,1788.4,1788.1,5.59247801]
[1746037579123,5.59181326,1788.4,1788.1,5.59249866]
[1746037579282,5.59146709,1788.5,1788.1,5.59249866]
[1746037579482,0.41824295,1788.8,1788.1,1.45075179]
[1746037579483,0.9987,1788.8,1788.1,1.45075179]
[1746037579756,5.59017031,1788.9,1788.5,5.59100549]
[1746037579923,5.59017031,1788.9,1788.5,5.59099633]
[1746037580097,5.59017031,1788.9,1788.5,11.1820452]
[1746037580300,5.59017031,1788.9,1788.5,5.59099633]
[1746037580510,5.58985609,1789.0,1788.6,5.59068305]
[1746037580700,5.58920351,1789.2,1788.8,5.59019059]
[1746037581239,4.0418,1789.3,1788.7,1.0614]
[1746037581391,5.59001477,1789.0,1788.7,1.0614]
[1746037581907,5.59001477,1789.0,1788.7,6.65201752]
[1746037582115,5.59001477,1789.0,1788.7,7.87629348]
[1746037582322,5.59001477,1789.0,1788.7,2.28567596]
[1746037583735,5.58940748,1789.1,1788.7,7.87618287]
[1746037584236,5.58973885,1789.0,1788.7,7.87618287]
[1746037584948,5.59010676,1788.9,1788.7,2.28567596]
[1746037585423,5.59010676,1788.9,1788.7,1.0614]
[1746037585594,5.58973885,1789.0,1788.7,1.0614]
[1746037585798,5.5905764,1788.8,1788.4,10.70040884]
[1746037586031,5.5905764,1788.8,1788.4,10.70040432]
[1746037586535,6.61935635,1788.9,1788.5,5.59124368]
[1746037586710,6.61935635,1788.9,1788.5,7.22026723]
[1746037586914,5.58985835,1789.0,1788.6,6.68152484]
[1746037587110,5.59012626,1788.9,1788.6,6.68152484]
[1746037587316,5.58922349,1789.2,1788.7,5.59051101]
[1746037587515,5.58953265,1789.1,1788.8,0.5590511]
[1746037588054,5.58923156,1789.2,1788.8,6.14923123]
[1746037588206,9.65480953,1789.3,1788.8,6.14923123]
[1746037588207,1.0659,1789.3,1788.8,6.14923123]
[1746037588535,3.0,1789.2,1788.9,5.59001387]
[1746037588737,8.58919838,1789.2,1788.9,1.17392451]
[1746037589035,5.58919838,1789.2,1788.9,1.17392451]
[1746037589237,5.58971492,1789.0,1788.6,1.0907]
[1746037589552,5.58981925,1789.0,1788.6,11.77539457]
[1746037589709,5.58968768,1789.1,1788.7,11.18105286]
[1746037590043,5.58968768,1789.1,1788.8,5.59031052]
[1746037590343,5.58926653,1789.2,1788.9,5.58991975]
[1746037590702,5.58926653,1789.2,1788.9,6.66111975]
[1746037591166,5.58926653,1789.2,1788.9,1.0712]
[1746037591319,5.58951973,1789.1,1788.9,1.0712]
[1746037591642,5.58926653,1789.2,1788.9,1.0712]
[1746037592946,5.58942053,1789.1,1788.9,1.0712]
[1746037593446,5.58942053,1789.1,1788.8,1.11807406]
[1746037593746,5.58926653,1789.2,1788.8,6.70835796]
[1746037594319,5.58942537,1789.1,1788.8,6.70835796]
[1746037594544,5.59013095,1788.9,1788.6,10.68492359]
[1746037594847,6.63393095,1788.9,1788.6,10.68492359]
[1746037595139,5.58988477,1789.0,1788.7,5.59053753]
[1746037596253,5.59027457,1788.9,1788.5,6.59202254]
[1746037596430,5.59052467,1788.8,1788.5,6.0949]
[1746037596632,5.59080188,1788.7,1788.5,5.094]
[1746037596830,5.59108448,1788.6,1788.3,5.094]
[1746037597142,5.59065242,1788.7,1788.3,12.31367021]
[1746037597648,11.18161727,1788.7,1788.3,12.31367021]
[1746037598054,5.59099129,1788.6,1788.3,12.31367021]
[1746037598747,1.0128,1788.8,1788.3,12.31351639]
[1746037598748,6.60329382,1788.8,1788.3,12.31351639]
[1746037598949,6.60329382,1788.8,1788.4,11.1828693]
[1746037599250,5.59020023,1788.9,1788.5,5.59110839]
[1746037599767,5.59020023,1788.9,1788.6,5.59094789]
[1746037600058,5.59020023,1788.9,1788.5,5.59110839]
[1746037600555,5.5903959,1788.8,1788.5,5.59110776]
[1746037601640,5.5903959,1788.8,1788.4,8.45897782]
[1746037601953,5.59070447,1788.7,1788.4,8.45897782]
[1746037602359,5.5903959,1788.8,1788.4,8.45897782]
[1746037602559,5.58985864,1789.0,1788.6,5.59092813]
[1746037602724,11.17987265,1789.0,1788.6,5.59092813]
[1746037603224,5.59007419,1788.9,1788.6,5.59092813]
[1746037603624,5.58971492,1789.0,1788.5,0.84589778]
[1746037603821,5.59045938,1788.8,1788.4,14.0504538]
[1746037604046,5.59045938,1788.8,1788.5,5.59126143]
[1746037604556,5.59045938,1788.8,1788.4,8.45900435]
[1746037604772,5.59045938,1788.8,1788.5,5.59127565]
[1746037605261,5.59020065,1788.9,1788.5,5.5911236]
[1746037605420,5.59020065,1788.9,1788.6,6.15001569]
[1746037606297,5.58984396,1789.0,1788.6,11.74078]
[1746037606596,5.58925276,1789.2,1788.8,5.59018221]
[1746037606744,5.58925276,1789.2,1788.8,11.18030934]
[1746037607044,5.58925276,1789.2,1788.8,5.59011563]
[1746037607245,5.58925276,1789.2,1788.9,5.58997991]
[1746037607583,5.58897256,1789.3,1788.9,5.58987164]
[1746037607884,5.58897256,1789.3,1788.9,5.58979985]
[1746037607885,5.58912775,1789.2,1788.9,5.58979985]
[1746037608367,8.58897496,1789.3,1788.8,6.76553853]
[1746037608546,5.58930635,1789.2,1788.8,1.17537156]
[1746037608748,5.58930635,1789.2,1788.9,5.58991182]
[1746037608948,5.5894175,1789.1,1788.8,6.76550625]
[1746037609149,5.5894175,1789.1,1788.8,6.76568542]
[1746037609373,5.5894175,1789.1,1788.7,11.75404701]
[1746037609647,5.58930635,1789.2,1788.8,5.5901125]
[1746037609872,11.17863066,1789.2,1788.8,5.5901125]
[1746037610071,11.17870849,1789.2,1788.8,5.5901125]
[1746037610383,5.58930635,1789.2,1788.8,11.18023459]
[1746037610587,5.58952728,1789.1,1788.7,11.75405999]
[1746037610750,5.58952728,1789.1,1788.7,11.75404455]
[1746037611049,5.58952728,1789.1,1788.8,5.59029795]
[1746037611886,5.58952728,1789.1,1788.7,7.39491569]
[1746037611887,12.17992992,1789.1,1788.7,11.75410727]
[1746037612186,6.59022728,1789.1,1788.8,5.59028752]
[1746037612387,6.59022728,1789.1,1788.7,11.75407636]
[1746037613046,5.58972527,1789.0,1788.7,11.75425158]
[1746037613684,5.58972527,1789.0,1788.7,6.1636]
[1746037613991,5.58972527,1789.0,1788.7,11.75420204]
[1746037614291,6.59022728,1789.1,1788.7,11.75420204]
[1746037614579,6.59022728,1789.1,1788.8,5.59024806]
[1746037614795,6.59022728,1789.1,1788.7,11.75403042]
[1746037615084,6.59022728,1789.1,1788.7,13.54448706]
[1746037615791,6.59022728,1789.1,1788.8,5.59032396]
[1746037616094,5.58979531,1789.0,1788.7,13.54445071]
[1746037616383,6.59022728,1789.1,1788.8,5.59032753]
[1746037616682,5.58952728,1789.1,1788.8,5.59032753]
[1746037616881,5.58952728,1789.1,1788.8,6.86197564]
[1746037617192,15.23288021,1789.3,1788.9,5.5899408]
[1746037617395,5.58910009,1789.2,1788.9,5.5899408]
[1746037619018,15.23282646,1789.3,1788.9,5.58984209]
[1746037619392,5.58925074,1789.2,1788.8,6.8617637]
[1746037619692,5.58925074,1789.2,1788.9,6.14903989]
[1746037619870,5.58943335,1789.1,1788.9,0.55911236]
[1746037620065,5.58943335,1789.1,1788.8,6.8617637]
[1746037620309,5.58995888,1789.0,1788.7,5.094]
[1746037620473,5.58995888,1789.0,1788.7,10.68463057]
[1746037621399,5.58959229,1789.1,1788.7,10.68444233]
[1746037621564,9.64384831,1789.3,1788.8,1.04200259]
[1746037621767,9.64384831,1789.3,1788.9,5.58974571]
[1746037621970,5.58912126,1789.2,1788.9,6.80635178]
[1746037622913,5.58943006,1789.1,1788.8,0.9861]
[1746037623609,5.58956536,1789.1,1788.7,5.094]
[1746037623913,5.58956536,1789.1,1788.8,5.59020593]
[1746037624109,5.58928017,1789.2,1788.8,5.59019059]
[1746037624406,5.58857345,1789.4,1788.9,6.64070162]
[1746037624614,5.58896137,1789.3,1789.0,5.58971068]
[1746037624907,5.58896137,1789.3,1788.9,12.89459221]
[1746037625110,11.17797679,1789.3,1788.9,7.30469059]